bitfinex-derivatives/quotes_ETHF0:USTF0_20251103
["timestamp","ask_amount","ask_price","bid_price","bid_amount"]
[1762204285608,10.453,3599.4,3599.0,0.50024]
[1762204285907,10.45557748,3599.4,3599.2,0.5002]
[1762204286110,0.00257748,3599.4,3599.2,0.5002]
[1762204286608,0.00257748,3599.4,3599.0,0.00232351]
[1762204286609,0.50022,3599.2,3599.0,0.00232351]
[1762204286804,0.50031,3598.5,3598.0,1.15329762]
[1762204287109,0.50031,3598.5,3598.0,0.65877]
[1762204287303,1.25059,3599.1,3598.2,0.50035]
[1762204287698,1.25059,3599.1,3598.2,0.00251035]
[1762204287900,0.50033,3598.4,3598.2,0.00251035]
[1762204288604,1.25062,3599.0,3598.2,0.00251035]
[1762204289308,1.25055,3599.2,3598.2,0.00251035]
[1762204289508,0.50026,3598.9,3598.7,0.1488]
[1762204291603,0.50034,3598.3,3598.2,0.00251035]
[1762204292810,10.448,3598.5,3598.2,0.00251035]
[1762204293208,10.448,3598.5,3598.3,0.50034]
[1762204293406,10.448,3598.5,3598.4,0.50033]
[1762204294008,10.448,3598.5,3598.2,0.50285035]
[1762204294309,0.50033,3598.4,3598.2,0.00251035]
[1762204295110,0.50034,3598.3,3598.2,0.00251035]
[1762204295812,10.448,3598.5,3598.2,0.00251035]
[1762204296013,0.50034,3598.3,3598.2,0.00251035]
[1762204296210,10.94831,3598.5,3598.2,0.00251035]
[1762204296714,0.50033,3598.4,3598.2,0.00251035]
[1762204297215,0.50034,3598.3,3598.2,0.00251035]
[1762204297402,10.448,3598.5,3598.2,0.00251035]
[1762204297609,10.94831,3598.5,3598.2,0.50286035]
[1762204297808,10.448,3598.5,3598.2,0.00251035]
[1762204298010,0.50034,3598.3,3598.2,0.00251035]
[1762204298211,0.50033,3598.4,3598.2,0.00251035]
[1762204298408,10.448,3598.5,3598.2,0.00251035]
[1762204298809,0.50033,3598.4,3598.2,0.00251035]
[1762204299011,0.50034,3598.3,3598.2,0.00251035]
[1762204299515,0.50033,3598.4,3598.2,0.00251035]
[1762204300110,10.448,3598.5,3598.4,0.50033]
[1762204300612,2.22265152,3600.2,3598.8,1.39548]
[1762204300910,2.49998,3600.9,3599.3,0.5002]
[1762204300911,2.977,3599.8,3599.3,0.5002]
[1762204301116,0.50016,3599.6,3599.2,0.50021]
[1762204301414,2.977,3599.8,3599.3,0.5002]
[1762204301712,2.977,3599.8,3598.4,0.99489762]
[1762204301906,1.25045,3599.5,3598.2,2.24829797]
[1762204302111,1.25051,3599.3,3598.8,0.1448]
[1762204302312,0.50026,3598.9,3598.8,0.1448]
[1762204302908,0.50029,3598.7,3598.3,0.99489762]
[1762204303214,1.25045,3599.5,3598.4,0.99489762]
[1762204303512,1.27539,3599.7,3598.2,1.49547486]
[1762204303513,1.25051,3599.3,3598.2,0.99740797]
[1762204303711,1.25062,3599.0,3598.3,0.99489762]
[1762204304016,0.50026,3598.9,3598.3,0.99489762]
[1762204304216,0.50026,3598.9,3598.5,0.5003]
[1762204304514,1.25307748,3599.4,3598.4,0.99489762]
[1762204304515,0.50022,3599.2,3598.8,0.1448]
[1762204304717,0.50022,3599.2,3598.9,0.50026]
[1762204305216,0.50022,3599.2,3598.8,0.1448]
[1762204305217,0.50026,3598.9,3598.8,0.1448]
[1762204306015,0.50025,3599.0,3598.8,0.1448]
[1762204306215,0.50026,3598.9,3598.8,0.1448]
[1762204307013,0.5003,3598.7,3598.4,0.99489762]
[1762204307208,0.5003,3598.7,3598.5,0.99489762]
[1762204307614,1.25306748,3599.4,3598.8,0.1501]
[1762204307615,0.50027,3598.9,3598.8,0.1501]
[1762204308514,0.50024,3599.1,3598.8,0.1501]
[1762204308712,0.50025,3599.0,3598.8,0.1501]
[1762204309115,0.50026,3598.9,3598.8,0.1501]
[1762204309516,0.50033,3598.4,3598.3,0.99489762]
[1762204309713,0.50034,3598.3,3598.2,0.99740797]
[1762204309907,0.50034,3598.3,3598.2,0.00251035]
[1762204310309,0.50037,3598.1,3597.8,7.97e-06]
[1762204310511,0.50042,3597.7,3597.6,1e-05]
[1762204310715,0.50051,3597.1,3597.0,0.1584]
[1762204311022,10.69953047,3597.1,3596.5,1.49296451]
[1762204311216,0.50054,3596.9,3596.4,1.64306451]
[1762204311410,10.435,3597.1,3596.6,0.50057]
[1762204311923,10.435,3597.1,3596.9,0.50053]
[1762204312122,0.97243152,3598.5,3597.3,0.1501]
[1762204312316,1.36354639,3598.4,3597.4,1.25117]
[1762204312517,11.29821639,3598.3,3598.0,0.1501]
[1762204312824,10.69854021,3598.2,3598.0,0.65048]
[1762204313019,10.434,3598.2,3598.0,0.65048]
[1762204313220,0.22284462,3599.2,3599.0,0.50024]
[1762204313421,0.22284462,3599.2,3599.0,0.50291941]
[1762204313422,11.29858289,3599.1,3599.0,0.50291941]
[1762204313623,11.29858289,3599.1,3598.7,0.1501]
[1762204313624,0.50027,3598.9,3598.7,0.1501]
[1762204313923,0.26461707,3598.8,3598.2,0.50035]
[1762204314123,0.50028,3598.7,3598.2,0.50035]
[1762204314423,10.435,3599.1,3598.7,0.1501]
[1762204314723,0.26466889,3599.0,3598.8,0.50027]
[1762204314925,0.26466889,3598.9,3598.8,0.50027]
[1762204315116,0.26466889,3598.9,3598.7,0.15327251]
[1762204315314,10.435,3599.1,3598.9,0.50025]
[1762204315622,0.26475718,3599.0,3598.7,0.65354251]
[1762204315816,10.435,3599.1,3598.8,0.50027]
[1762204316016,0.26479076,3599.0,3598.9,0.50026]
[1762204316216,10.435,3599.1,3598.9,0.50026]
[1762204316420,10.435,3599.1,3598.7,0.65355251]
[1762204316618,0.26480306,3599.0,3598.7,0.65355251]
[1762204316819,10.435,3599.1,3598.7,0.65355251]
[1762204317224,10.435,3599.1,3598.8,0.50026]
[1762204318529,10.93523,3599.1,3598.8,0.50026]
[1762204319228,10.93523,3599.1,3598.7,0.15327251]
[1762204319418,10.93523,3599.1,3598.7,0.65355251]
[1762204320215,17.3814,3599.1,3598.7,0.15327251]
[1762204320422,0.50035,3598.3,3598.0,0.1501]
[1762204320722,10.43,3598.2,3598.0,0.1501]
[1762204320924,10.43,3598.3,3598.2,0.50035]
[1762204321428,10.43,3599.0,3598.9,0.50026]
[1762204321626,10.43,3599.0,3598.8,0.65037]
[1762204322031,10.43,3599.0,3598.9,0.50026]
[1762204322423,10.43,3599.0,3598.8,0.1501]
[1762204322424,0.00257748,3599.4,3599.3,0.7438]
[1762204322924,0.97243152,3601.2,3600.0,0.1501]
[1762204323124,1.36853056,3601.0,3600.6,0.1501]
[1762204323326,0.5,3600.8,3600.6,0.1501]
[1762204323623,0.50008,3600.2,3600.0,0.1501]
[1762204323817,0.50005,3600.4,3600.0,0.1501]
[1762204324022,0.50233713,3600.2,3600.0,0.1501]
[1762204324221,0.00225713,3600.2,3600.1,0.2436]
[1762204324632,0.50233713,3600.2,3600.0,0.1501]
[1762204324928,0.50017,3599.5,3599.4,0.1501]
[1762204325127,0.50017,3599.5,3598.0,1.64368519]
[1762204325128,0.50034,3598.3,3598.0,1.64368519]
[1762204325330,0.97243152,3600.1,3600.0,0.1501]
[1762204325519,0.60321378,3600.1,3600.0,0.1501]
[1762204325720,0.00225713,3600.2,3600.0,0.1501]
[1762204326325,0.50233713,3600.2,3600.0,0.07288051]
[1762204327121,0.50018,3599.5,3599.2,0.1501]
[1762204327831,0.50015,3599.7,3599.2,0.1501]
[1762204328229,0.50017,3599.6,3599.2,0.1501]
[1762204328623,0.50018,3599.5,3599.2,0.1501]
[1762204328828,1.25027,3600.0,3599.2,0.1501]
[1762204329030,0.50018,3599.5,3599.2,0.1501]
[1762204329227,0.5002,3599.4,3599.2,0.1501]
[1762204330127,1.25023,3600.1,3599.2,0.1501]
[1762204330325,0.50011,3600.0,3599.4,0.50018]
[1762204330528,0.50011,3600.0,3599.6,0.50016]
[1762204330937,0.00225713,3600.2,3600.1,0.1501]
[1762204332232,0.50233713,3600.2,3600.1,0.1501]
[1762204333230,1.25023,3600.1,3599.2,0.1501]
[1762204333425,0.50015,3599.7,3599.2,0.65031]
[1762204333633,0.50015,3599.7,3599.3,0.50019]
[1762204333837,0.50015,3599.7,3599.3,0.5002]
[1762204334528,0.50015,3599.7,3599.4,0.50019]
[1762204334935,0.50015,3599.7,3599.3,0.5002]
[1762204335432,1.25023,3600.1,3599.4,0.50019]
[1762204335735,0.50014,3599.8,3599.4,0.50019]
[1762204336124,0.50009,3600.1,3600.0,0.152]
[1762204337232,0.00225713,3600.2,3600.0,0.152]
[1762204337539,0.50009,3600.1,3600.0,0.3976]
[1762204337737,0.50234713,3600.2,3600.0,0.3976]
[1762204337932,0.50009,3600.1,3600.0,0.3976]
[1762204338143,0.50009,3600.1,3600.0,0.152]
[1762204340538,0.50009,3600.1,3600.0,0.3976]
[1762204340935,0.50009,3600.1,3600.0,0.152]
[1762204342437,0.5002,3599.3,3599.2,0.1501]
[1762204342835,0.5002,3599.4,3599.2,0.1501]
[1762204343028,0.50019,3599.4,3599.2,0.1501]
[1762204343232,0.5002,3599.3,3599.2,0.1501]
[1762204344642,0.5002,3599.3,3599.2,0.3957]
[1762204345235,10.416,3599.7,3599.2,0.1501]
[1762204345431,0.5002,3599.3,3599.2,0.3957]
[1762204345834,0.5002,3599.3,3599.2,0.1501]
[1762204346938,1.25055,3599.2,3598.5,1.49264035]
[1762204347140,1.25055,3599.2,3598.2,1.99425456]
[1762204347141,0.50034,3598.3,3598.2,1.99425456]
[1762204347341,10.91434,3598.3,3598.2,0.15551749]
[1762204348141,10.91434,3598.3,3598.2,0.00351749]
[1762204348739,10.414,3598.3,3598.2,0.00351749]
[1762204349245,10.414,3598.3,3598.2,0.63826749]
[1762204349543,14.7990107,3599.6,3598.8,0.1344]
[1762204349544,10.413,3599.3,3598.8,0.1344]
[1762204349738,10.413,3599.3,3599.2,0.50022]
[1762204349939,10.413,3599.3,3598.8,0.1344]
[1762204350140,10.413,3599.3,3599.1,0.50022]
[1762204350336,10.413,3599.3,3598.8,0.1344]
[1762204350538,10.413,3599.3,3599.0,0.50023]
[1762204350740,10.413,3599.3,3598.8,0.1344]
[1762204350941,10.413,3599.3,3599.1,0.50023]
[1762204351142,10.413,3599.3,3598.9,0.50024]
[1762204351344,10.413,3599.3,3599.0,0.50024]
[1762204352347,10.413,3599.3,3599.2,0.50022]
[1762204353957,10.413,3599.3,3598.8,0.1344]
[1762204354246,10.413,3599.3,3599.1,0.50023]
[1762204354448,10.413,3599.3,3599.2,0.50022]
[1762204355644,10.413,3599.3,3598.8,1.62575861]
[1762204355844,10.413,3599.3,3597.6,3.59760225]
[1762204355845,0.50033,3598.4,3598.3,1.49135861]
[1762204356044,0.50034,3598.3,3598.2,0.00351749]
[1762204356251,10.41,3598.5,3598.2,0.14931749]
[1762204356649,10.91032,3598.5,3598.2,0.14931749]
[1762204356846,0.50034,3598.3,3598.2,0.14931749]
[1762204357049,0.97243152,3599.7,3598.8,0.1458]
[1762204357248,11.2809071,3599.6,3599.2,0.50021]
[1762204357451,0.26461539,3599.5,3599.2,0.50021]
[1762204357650,10.409,3599.6,3599.2,0.50021]
[1762204357958,10.90916,3599.6,3599.4,0.1458]
[1762204358255,10.409,3599.6,3598.8,0.1458]
[1762204358452,0.50024,3599.0,3598.8,0.1458]
[1762204358652,0.5002,3599.4,3598.9,0.50025]
[1762204358854,10.409,3599.6,3598.9,0.50025]
[1762204359246,10.409,3599.6,3598.8,0.1458]
[1762204359557,10.409,3599.6,3598.9,0.50026]
[1762204359756,0.5002,3599.4,3599.0,0.50023]
[1762204360150,0.50017,3599.5,3599.4,0.1458]
[1762204360356,10.409,3599.6,3599.4,0.1458]
[1762204360557,10.90916,3599.6,3599.4,0.1458]
[1762204361459,0.50017,3599.5,3599.4,0.1458]
[1762204361665,0.50015,3599.7,3599.4,0.64599]
[1762204361861,0.50015,3599.7,3599.4,0.1458]
[1762204362152,10.406,3599.8,3599.6,0.50016]
[1762204362363,10.406,3599.8,3599.4,0.1458]
[1762204362364,10.406,3599.8,3599.7,0.72835]
[1762204362766,0.00225713,3600.2,3600.0,0.1458]
[1762204363156,0.50233713,3600.2,3600.0,0.1458]
[1762204363461,1.25023,3600.1,3599.4,0.1458]
[1762204363666,0.50015,3599.7,3599.4,0.1458]
[1762204363862,1.25246713,3600.2,3599.4,0.1458]
[1762204364060,0.50015,3599.7,3599.4,0.1458]
[1762204364264,0.50013,3599.8,3599.5,0.50017]
[1762204364466,0.00225713,3600.2,3599.4,0.1458]
[1762204364864,0.00225713,3600.2,3599.4,0.64598]
[1762204365066,0.50015,3599.7,3599.4,0.64598]
[1762204366064,0.50017,3599.5,3599.4,0.1458]
[1762204366368,0.50015,3599.7,3599.4,0.64599]
[1762204366866,0.50017,3599.6,3599.4,0.1458]
[1762204367057,0.50017,3599.5,3599.4,0.1458]
[1762204367259,0.50016,3599.6,3599.4,0.1458]
[1762204367660,0.00225713,3600.2,3599.4,0.1458]
[1762204368064,1.25024,3600.1,3599.4,0.1458]
[1762204368465,0.50017,3599.5,3599.4,0.1458]
[1762204368762,0.50009,3600.1,3599.4,0.1458]
[1762204368963,1.25023,3600.1,3599.4,0.1458]
[1762204369162,0.50017,3599.5,3599.4,0.1458]
[1762204369366,0.50016,3599.6,3599.4,0.1458]
[1762204370467,0.50016,3599.6,3599.4,0.64599]
[1762204370668,1.25023,3600.1,3599.4,0.1458]
[1762204371169,0.50017,3599.6,3599.4,0.1458]
[1762204371370,1.25024,3600.1,3599.4,0.64598]
[1762204372163,0.50233713,3600.2,3599.4,0.1458]
[1762204372365,0.50015,3599.7,3599.4,0.64599]
[1762204373170,0.50009,3600.1,3600.0,0.1344]
[1762204374271,0.50022,3599.2,3599.1,1.49135861]
[1762204374470,0.5003,3598.6,3598.5,0.1344]
[1762204374971,0.50034,3598.3,3598.2,0.14931749]
[1762204375568,0.50034,3598.3,3598.2,0.00351749]
[1762204375868,7.44834,3598.3,3598.2,0.00351749]
[1762204376067,0.50047,3597.4,3597.3,1.49135861]
[1762204376376,10.395,3597.4,3597.0,0.1344]
[1762204376573,0.5005,3597.2,3597.0,0.1344]
[1762204376774,10.89548,3597.4,3597.0,0.1344]
[1762204376969,10.89548,3597.4,3597.0,0.13683524]
[1762204377164,0.50048,3597.3,3597.0,0.13683524]
[1762204377566,10.39704936,3597.4,3596.4,0.1344]
[1762204377766,0.50054,3596.9,3596.4,0.1344]
[1762204377966,0.5005,3597.2,3596.4,0.635]
[1762204378164,0.50051,3597.1,3596.4,0.635]
[1762204378365,0.50053,3597.0,3596.4,0.1344]
[1762204378564,0.50055,3596.9,3596.4,0.13706203]
[1762204379064,10.39704936,3597.4,3596.4,0.13706203]
[1762204379264,10.39704936,3597.4,3597.0,0.1344]
[1762204379475,0.50048,3597.3,3597.0,0.1344]
[1762204380575,0.5005,3597.2,3597.0,0.1344]
[1762204380772,10.39704936,3597.4,3597.0,0.1344]
[1762204381167,0.5005,3597.2,3597.0,0.1344]
[1762204381373,10.39704936,3597.4,3597.0,0.1344]
[1762204381670,0.5005,3597.2,3597.0,0.1344]
[1762204381875,0.50058,3596.6,3596.4,0.13706203]
[1762204382174,10.394,3597.2,3597.0,0.1344]
[1762204382570,2.7097007,3598.8,3597.0,0.1344]
[1762204382571,1.25061,3599.1,3597.6,0.1344]
[1762204382770,10.394,3599.0,3597.6,0.1344]
[1762204383075,1.25042,3599.6,3598.2,0.1344]
[1762204383275,0.50026,3598.9,3598.5,0.50031]
[1762204383480,0.50026,3598.9,3598.8,0.1344]
[1762204383674,0.50034,3598.4,3598.2,0.1344]
[1762204383869,10.393,3598.7,3598.2,0.1344]
[1762204384073,0.5003,3598.6,3598.2,0.1344]
[1762204384374,0.5003,3598.6,3597.6,0.1344]
[1762204384375,0.50042,3597.7,3597.6,0.1344]
[1762204384572,0.5005,3597.2,3597.0,0.1344]
[1762204385279,10.393,3597.8,3597.1,0.5005]
[1762204385474,0.50048,3597.3,3597.0,0.1344]
[1762204385981,0.50043,3597.7,3597.0,0.1344]
[1762204386278,0.50044,3597.6,3597.0,0.1344]
[1762204386482,0.50045,3597.5,3597.0,0.63491]
[1762204386980,10.393,3597.8,3597.0,0.63491]
[1762204386981,0.50047,3597.4,3597.0,0.63491]
[1762204387381,0.50045,3597.5,3597.0,0.1344]
[1762204387580,10.393,3597.8,3597.0,0.63491]
[1762204387983,0.50048,3597.3,3597.0,0.1344]
[1762204388278,0.5005,3597.2,3597.0,0.1344]
[1762204389481,0.50046,3597.5,3597.1,0.5005]
[1762204389671,0.50046,3597.5,3597.0,0.1344]
[1762204389672,0.50049,3597.2,3597.0,0.1344]
[1762204389870,10.393,3597.8,3597.1,0.50051]
[1762204389871,0.50047,3597.4,3597.1,0.50051]
[1762204390075,1.25109,3597.7,3597.0,0.1344]
[1762204390480,0.50047,3597.5,3597.0,0.63492]
[1762204390681,0.50048,3597.3,3597.0,0.63492]
[1762204390884,10.393,3597.8,3597.6,0.1344]
[1762204391181,0.50042,3597.7,3597.6,0.1344]
[1762204391977,10.89342,3597.8,3597.6,0.1344]
[1762204392172,0.50042,3597.7,3597.6,0.1344]
[1762204392576,0.50049,3597.2,3597.0,0.1344]
[1762204393080,0.50047,3597.4,3597.1,0.50051]
[1762204393281,1.25048,3599.4,3598.8,0.1344]
[1762204393485,0.50260648,3598.9,3598.8,0.1344]
[1762204393781,0.50034,3598.3,3598.2,0.1344]
[1762204394887,0.50042,3597.7,3597.6,0.1344]
[1762204396083,10.388,3597.8,3597.6,0.1344]
[1762204396274,0.50042,3597.7,3597.6,0.1344]
[1762204396783,0.50045,3597.5,3597.1,0.5005]
[1762204397480,10.388,3597.8,3597.6,0.1476]
[1762204397781,0.50049,3597.2,3597.0,0.1344]
[1762204398285,0.50056,3596.8,3596.4,0.13706203]
[1762204398483,10.387,3597.2,3596.4,0.13706203]
[1762204398681,0.50058,3596.6,3596.4,0.13706203]
[1762204399080,0.50059,3596.5,3596.4,0.13706203]
[1762204399583,0.50059,3596.5,3596.4,0.00266203]
[1762204400387,0.50059,3596.5,3596.4,0.15026203]
[1762204401681,0.50059,3596.5,3596.4,0.00266203]
[1762204403388,0.50059,3596.5,3596.4,0.15026203]
[1762204403893,0.50059,3596.5,3596.4,0.00266203]
[1762204405186,0.97243152,3597.6,3596.4,0.15026203]
[1762204405391,0.50056,3596.8,3596.4,0.65086203]
[1762204405593,10.88454,3596.9,3596.7,0.2329]
[1762204405795,10.88354,3596.9,3596.7,0.2329]
[1762204406191,0.50055,3596.8,3596.7,0.2329]
[1762204407294,0.50055,3596.8,3596.4,0.65086203]
[1762204408397,10.88355,3596.9,3596.6,0.50058]
[1762204408593,10.88354,3596.9,3596.8,0.2329]
[1762204408793,10.383,3596.9,3596.8,0.73345]
[1762204409196,10.383,3596.9,3596.8,0.2329]
[1762204409395,10.383,3596.9,3596.8,0.73345]
[1762204409899,1.25104,3597.8,3596.5,1.49135861]
[1762204409900,1.25111,3597.6,3597.0,0.3853]
[1762204410199,10.381,3597.5,3597.0,0.3853]
[1762204410393,0.50049,3597.3,3597.0,0.3853]
[1762204410601,0.50051,3597.2,3597.1,0.2374]
[1762204411993,10.381,3597.5,3597.1,0.2374]
[1762204412301,10.381,3597.5,3597.4,0.73787]
[1762204412495,10.87937,3598.1,3598.0,0.1479]
[1762204412696,10.87937,3598.1,3598.0,0.3853]
[1762204412994,10.379,3598.1,3598.0,0.88568]
[1762204413298,0.50260648,3598.9,3598.8,0.1479]
[1762204413498,0.77984591,3598.9,3598.8,0.1479]
[1762204414204,0.50260648,3598.9,3598.8,0.1479]
[1762204416599,0.50037,3598.1,3598.0,0.1479]
[1762204416797,10.375,3598.3,3598.0,0.1479]
[1762204417098,0.97243152,3600.0,3598.8,0.3853]
[1762204417297,5.205,3600.0,3599.7,0.2374]
[1762204417792,5.205,3600.0,3599.4,0.1479]
[1762204417996,0.50015,3599.7,3599.4,0.1479]
[1762204418197,0.00328642,3599.7,3599.4,0.15092769]
[1762204418599,0.50344642,3599.7,3599.4,0.15092769]
[1762204418804,0.50016,3599.6,3599.4,0.15092769]
[1762204418994,0.00328642,3599.7,3599.5,0.50016]
[1762204419195,0.00328642,3599.7,3599.4,0.15092769]
[1762204419394,0.50016,3599.6,3599.4,0.15092769]
[1762204419595,0.00328642,3599.7,3599.4,0.15092769]
[1762204420002,0.50016,3599.6,3599.4,0.15092769]
[1762204420800,0.00328642,3599.7,3599.4,0.15092769]
[1762204421000,0.50016,3599.6,3599.5,0.2374]
[1762204422104,0.50016,3599.6,3599.4,0.15092769]
[1762204422300,0.50026,3598.9,3598.8,0.1479]
[1762204423304,0.50026,3598.9,3598.8,0.14989922]
[1762204425499,0.50026,3598.9,3598.8,0.38729922]
[1762204426610,0.50026,3598.9,3598.8,0.14989922]
[1762204427509,0.00328642,3599.7,3598.9,0.2389]
[1762204427705,0.00328642,3599.7,3598.8,0.14989922]
[1762204427706,3.461,3599.6,3599.5,0.1441]
[1762204428010,3.96116,3599.6,3599.5,0.1441]
[1762204428209,3.461,3599.6,3599.5,0.383]
[1762204429110,0.00328642,3599.7,3599.5,0.383]
[1762204429305,0.00328642,3599.7,3599.5,0.1441]
[1762204429506,0.50016,3599.6,3599.5,0.1441]
[1762204430508,0.50024,3599.1,3598.8,0.14989922]
[1762204430713,0.50024,3599.0,3598.9,0.2389]
[1762204432408,10.86216,3599.6,3599.5,0.383]
[1762204433821,10.86216,3599.6,3599.5,0.1441]
[1762204434715,10.362,3599.6,3599.5,0.383]
[1762204435214,10.86216,3599.6,3599.5,0.1441]
[1762204438619,10.362,3599.6,3599.5,0.383]
[1762204438823,0.00328642,3599.7,3599.6,0.2389]
[1762204439518,0.50343642,3599.7,3599.6,0.2389]
[1762204440817,0.50016,3599.6,3599.5,0.1441]
[1762204441013,0.00328642,3599.7,3599.6,0.73906]
[1762204441815,0.00328642,3599.7,3599.5,0.1441]
[1762204441816,0.50016,3599.6,3599.5,0.1441]
[1762204443217,1.25044,3599.5,3598.9,1.49103552]
[1762204443519,0.50023,3599.1,3599.0,0.2389]
[1762204443713,10.349,3599.3,3599.2,0.2389]
[1762204443916,10.8492,3599.3,3599.2,0.2389]
[1762204444111,10.8492,3599.3,3598.9,1.99496406]
[1762204444420,10.349,3599.3,3599.2,0.2389]
[1762204444620,10.3181,3599.3,3599.2,0.2389]
[1762204445014,10.3181,3599.3,3599.0,1.49471406]
[1762204445309,0.50024,3599.0,3598.9,1.49471406]
[1762204445516,10.3181,3599.3,3598.8,0.14989922]
[1762204445517,0.50026,3598.9,3598.8,0.14989922]
[1762204446324,0.50026,3598.9,3598.8,0.00199922]
[1762204448720,0.76709381,3598.9,3598.8,0.00199922]
[1762204448919,0.76709381,3598.9,3598.0,0.1479]
[1762204448920,0.50035,3598.2,3598.1,1.49471406]
[1762204449129,0.50037,3598.1,3598.0,1.64261406]
[1762204449419,0.50037,3598.1,3598.0,0.3868]
[1762204449924,0.50037,3598.1,3598.0,0.15024452]
[1762204450924,0.50037,3598.1,3597.2,1.49471406]
[1762204450925,0.50048,3597.3,3597.2,1.49471406]
[1762204451126,0.50051,3597.1,3597.0,1.63881406]
[1762204451314,0.50051,3597.1,3597.0,0.1441]
[1762204451517,1.25131,3597.0,3596.2,1.49471406]
[1762204451722,0.50065,3596.1,3596.0,0.1441]
[1762204452025,0.50065,3596.1,3595.8,1.49471406]
[1762204452026,0.50069,3595.8,3595.7,1.49471406]
[1762204452328,0.50079,3595.1,3595.0,0.1441]
[1762204452619,0.50081,3594.9,3594.8,0.22792504]
[1762204452820,0.50081,3594.9,3594.7,9.12e-06]
[1762204453019,6.9544,3594.8,3594.7,0.00225283]
[1762204453219,0.50091,3594.2,3594.0,0.1441]
[1762204453426,9.85,3594.1,3594.0,0.1441]
[1762204453623,0.5008,3595.0,3594.0,0.1441]
[1762204453827,0.50083,3594.8,3594.6,0.1441]
[1762204454024,0.475,3594.7,3594.6,0.1441]
[1762204454324,10.342,3594.7,3594.6,0.1470429]
[1762204457928,10.342,3594.7,3594.6,0.3859429]
[1762204458123,10.342,3594.7,3594.6,0.1470429]
[1762204458420,10.342,3594.7,3594.6,0.0029429]
[1762204458825,10.342,3594.7,3594.6,0.1468429]
[1762204459620,10.342,3594.7,3594.6,0.3782429]
[1762204459823,10.342,3595.8,3595.0,0.50079]
[1762204460028,0.50076,3595.3,3595.2,0.1439]
[1762204460226,10.342,3595.8,3595.2,0.1439]
[1762204460426,0.50075,3595.4,3595.2,0.1439]
[1762204461820,0.50074,3595.5,3595.2,0.1439]
[1762204462024,0.50075,3595.4,3595.2,0.1439]
[1762204463018,0.50083,3594.9,3594.6,0.1468429]
[1762204463223,0.50083,3594.8,3594.6,0.1468429]
[1762204465925,0.50084,3594.7,3594.6,0.1468429]
[1762204466130,0.50084,3594.7,3594.6,0.0029429]
[1762204468028,0.50092,3594.1,3594.0,0.1441]
[1762204468228,10.339,3594.2,3594.0,0.1441]
[1762204468629,0.50092,3594.1,3594.0,0.1441]
[1762204468832,10.339,3594.2,3594.0,0.1441]
[1762204469031,0.50092,3594.1,3594.0,0.14611809]
[1762204470335,10.339,3594.2,3594.0,0.14611809]
[1762204470336,10.339,3594.2,3594.1,0.2273]
[1762204470530,0.50086,3594.6,3594.5,0.2273]
[1762204470725,10.83884,3594.8,3594.5,0.2273]
[1762204470930,0.50084,3594.7,3594.6,0.1342]
[1762204471633,10.337,3594.9,3594.6,0.1342]
[1762204472034,0.50084,3594.7,3594.6,0.1342]
[1762204474033,10.337,3594.9,3594.6,0.3615]
[1762204474227,10.83781,3594.9,3594.8,0.2273]
[1762204474738,0.50084,3594.7,3594.6,0.1342]
[1762204477439,10.337,3594.9,3594.6,0.1342]
[1762204477935,0.50084,3594.7,3594.6,0.1342]
[1762204479339,10.337,3594.9,3594.6,0.1342]
[1762204479540,0.26892933,3594.8,3594.7,0.50084]
[1762204479739,0.26892933,3594.8,3594.6,0.1342]
[1762204479939,10.337,3594.9,3594.6,0.1342]
[1762204480140,0.50084,3594.7,3594.6,0.1342]
[1762204480328,0.26892559,3594.7,3594.6,0.63506]
[1762204480530,10.83783,3594.9,3594.7,0.72814]
[1762204480734,0.26949357,3594.8,3594.7,0.72814]
[1762204481036,0.77032357,3594.8,3594.7,0.72814]
[1762204481534,0.77032357,3594.8,3594.7,0.2273]
[1762204481935,0.50084,3594.7,3594.6,0.63505]
[1762204482139,0.77033357,3594.7,3594.6,0.3615]
[1762204482337,0.26949357,3594.7,3594.6,0.86236]
[1762204482640,0.5007,3595.8,3595.5,0.1342]
[1762204482940,0.25186676,3595.7,3595.6,0.72802]
[1762204483141,0.25186676,3595.7,3595.6,0.50072]
[1762204483341,10.328,3595.8,3595.7,0.728]
[1762204483638,10.328,3595.8,3595.7,0.2273]
[1762204483841,10.328,3595.8,3595.5,0.1342]
[1762204484035,10.328,3595.8,3595.5,0.3615]
[1762204484342,10.328,3595.8,3595.7,0.728]
[1762204484845,11.08023365,3595.8,3595.7,0.2273]
[1762204485043,0.50072,3595.6,3595.5,0.1342]
[1762204485542,0.50072,3595.6,3595.5,0.3675]
[1762204485935,0.5007,3595.7,3595.5,0.63493]
[1762204486133,0.50072,3595.6,3595.5,0.1342]
[1762204486943,0.75223794,3595.6,3595.5,0.1342]
[1762204487240,0.75225255,3595.6,3595.5,0.1342]
[1762204487644,0.50079,3595.1,3595.0,0.1342]
[1762204487943,10.82379,3595.1,3595.0,0.1342]
[1762204488142,0.50084,3594.7,3594.6,0.1342]
[1762204488344,0.50084,3594.7,3594.0,1.64083215]
[1762204488345,0.50091,3594.2,3594.0,1.64083215]
[1762204488538,0.50091,3594.2,3594.0,0.14611809]
[1762204488943,10.322,3594.3,3594.1,0.50092]
[1762204489439,10.82286,3594.6,3594.5,0.1426]
[1762204489641,0.97243152,3595.6,3594.5,0.1426]
[1762204489838,0.50086,3594.6,3594.5,0.1426]
[1762204490240,0.50084,3594.7,3594.5,0.1426]
[1762204490840,0.50086,3594.6,3594.5,0.1426]
[1762204495449,0.50092,3594.1,3594.0,0.14611809]
[1762204495642,10.81692,3594.1,3594.0,0.14611809]